bitfinex-derivatives/quotes_ETHF0:USTF0_20250704
["timestamp","ask_amount","ask_price","bid_price","bid_amount"]
[1751620940215,57.37616269,2553.1,2553.0,0.78313]
[1751620940418,56.43,2553.1,2553.0,3.99093]
[1751620940715,11.032,2553.6,2553.5,0.78298]
[1751620940919,0.94517336,2553.6,2553.5,0.78298]
[1751620941218,37.33313336,2553.6,2553.4,0.78298]
[1751620941526,0.78298,2553.5,2553.4,0.78298]
[1751620941716,35.601,2553.5,2553.4,0.78298]
[1751620941913,0.78298,2553.5,2553.4,0.78298]
[1751620942113,36.38398,2553.5,2553.4,0.78298]
[1751620942418,0.78301,2553.4,2553.3,1.43532]
[1751620942914,0.78301,2553.4,2553.3,0.6523]
[1751620943116,0.78307,2553.2,2553.1,0.6501]
[1751620944312,0.7831,2553.1,2553.0,4.64321]
[1751620945020,0.78309,2553.2,2553.1,0.78308]
[1751620946212,36.38405,2553.3,2553.2,0.78307]
[1751620946421,0.783,2553.5,2553.4,0.78301]
[1751620946610,35.592,2553.5,2553.4,0.78301]
[1751620946814,0.78297,2553.6,2553.5,0.78296]
[1751620947013,36.37497,2553.6,2553.5,0.78296]
[1751620947815,0.78297,2553.6,2553.5,0.78296]
[1751620948017,36.37497,2553.6,2553.5,0.78296]
[1751620948217,0.6604,2553.8,2553.4,1.95751]
[1751620948418,0.78291,2553.8,2553.7,0.78291]
[1751620948619,36.37488,2553.9,2553.8,0.78287]
[1751620949022,0.78291,2553.8,2553.7,0.78289]
[1751620949216,0.78287,2553.9,2553.8,0.78286]
[1751620950917,36.37084,2554.0,2553.9,0.78282]
[1751620952822,4.5642,2554.5,2553.9,3.2078]
[1751620953018,35.585,2554.4,2554.0,0.6567]
[1751620953418,35.585,2554.3,2554.0,0.6567]
[1751620953722,0.78271,2554.4,2554.2,0.78276]
[1751620953912,35.585,2554.4,2554.3,0.78273]
[1751620954116,3.8726,2554.5,2554.4,0.7827]
[1751620954316,39.4576,2554.5,2554.4,0.7827]
[1751620954514,38.7928,2554.5,2554.4,0.7827]
[1751620954819,3.2078,2554.5,2554.4,0.7827]
[1751620955019,3.2078,2554.5,2554.2,0.6793]
[1751620955220,0.78273,2554.3,2554.2,4.66984]
[1751620955724,0.78272,2554.4,2554.3,0.78272]
[1751620956023,35.585,2554.6,2554.2,4.66984]
[1751620956024,0.78273,2554.3,2554.2,4.66984]
[1751620956913,0.78273,2554.3,2554.2,3.8871]
[1751620958423,0.78273,2554.3,2554.2,3.2078]
[1751620958623,0.78285,2553.9,2553.8,3.2078]
[1751620959622,2.06435,2553.9,2553.8,3.2078]
[1751620961823,0.78291,2553.7,2553.6,0.78294]
[1751620963225,0.7829,2553.8,2553.7,0.78289]
[1751620963927,2.06437,2553.9,2553.8,0.78288]
[1751620964228,36.35987,2553.9,2553.8,0.78288]
[1751620965730,0.78292,2553.8,2553.7,0.78289]
[1751620966030,2.13532,2553.8,2553.7,0.78289]
[1751620967331,2.83572,2553.8,2553.7,0.78289]
[1751620967927,0.78295,2553.7,2553.6,0.78292]
[1751620968127,1.48331,2553.8,2553.7,0.78292]
[1751620972434,2.78311,2553.8,2553.7,0.78292]
[1751620972633,1.48331,2553.8,2553.7,0.78292]
[1751620973135,2.81581,2553.8,2553.7,0.78292]
[1751620974237,0.78291,2553.7,2553.6,3.99072]
[1751620974434,2.11541,2553.7,2553.6,3.99072]
[1751620978043,0.78295,2553.6,2553.5,3.1266521]
[1751620978343,37.66175,2553.6,2553.5,0.78296]
[1751620979141,37.66275,2553.6,2553.5,0.78296]
[1751620980242,0.78298,2553.5,2553.4,3.1266721]
[1751620980437,2.89088,2553.5,2553.4,3.1266721]
[1751620980644,2.89088,2553.5,2553.4,0.78298]
[1751620980842,2.1079,2553.5,2553.4,0.78298]
[1751620981038,37.6829,2553.5,2553.4,0.78298]
[1751620981243,38.46588,2553.5,2553.4,0.78298]
[1751620982154,35.575,2553.5,2553.4,3.99078]
[1751620982446,36.35798,2553.5,2553.4,3.99078]
[1751620982646,35.575,2553.5,2553.4,3.99078]
[1751620983247,36.35798,2553.5,2553.4,3.99078]
[1751620984649,35.575,2553.5,2553.4,3.99078]
[1751620984949,36.35798,2553.5,2553.4,3.99078]
[1751620985350,36.35898,2553.5,2553.4,6.3344721]
[1751620986148,0.78298,2553.5,2553.4,6.3344721]
[1751620986348,36.35898,2553.5,2553.4,6.3344721]
[1751620989150,0.78297,2553.6,2553.5,0.78295]
[1751620989352,36.35897,2553.6,2553.5,0.78295]
[1751620989951,0.78297,2553.6,2553.5,0.78295]
[1751620990251,1.4833,2553.8,2553.7,0.78292]
[1751620990455,37.0583,2553.8,2553.7,0.78292]
[1751620992051,1.4833,2553.8,2553.7,0.78292]
[1751620992246,37.0583,2553.8,2553.7,0.78292]
[1751620993053,0.7004,2553.8,2553.7,0.78292]
[1751620993353,0.6984,2554.3,2553.8,1.95722]
[1751620993552,0.78281,2554.1,2554.0,0.78279]
[1751620993751,0.78284,2554.0,2553.9,0.78283]
[1751620993944,0.78284,2554.0,2553.7,8.2162721]
[1751620993945,2.28714455,2554.0,2553.7,3.2078]
[1751620994150,37.29645582,2553.9,2553.8,0.78287]
[1751620994353,38.64405582,2553.9,2553.8,0.78287]
[1751620995250,37.70447,2553.9,2553.8,0.78287]
[1751620995651,36.9216,2553.9,2553.8,0.78287]
[1751620995851,36.9216,2553.9,2553.8,3.1265621]
[1751620997354,35.574,2553.9,2553.8,3.1265621]
[1751620998255,0.78283,2554.0,2553.9,0.78285]
[1751620998452,35.572,2554.0,2553.9,0.78285]
[1751620999157,36.35482,2554.0,2553.9,0.78285]
[1751621000050,5.2036,2554.2,2553.8,3.0148921]
[1751621000254,38.58124845,2554.1,2554.0,0.78279]
[1751621000452,37.79843845,2554.1,2554.0,0.78279]
[1751621000653,36.8598,2554.1,2554.0,0.78279]
[1751621001051,1.2878,2554.1,2554.0,0.78279]
[1751621001254,35.571,2554.1,2554.0,0.78279]
[1751621001552,3.9158,2554.2,2554.1,0.78279]
[1751621001755,36.279,2554.2,2554.1,0.78279]
[1751621002055,0.708,2554.2,2554.1,3.99059]
[1751621002256,2.1051,2554.4,2554.3,0.78273]
[1751621002456,38.61427826,2554.4,2554.3,0.78273]
[1751621003357,37.6761,2554.4,2554.3,0.78273]
[1751621003659,38.4588,2554.4,2554.3,0.78273]
[1751621003860,0.78276,2554.3,2554.2,0.78273]
[1751621004055,0.78276,2554.2,2554.1,0.78278]
[1751621004256,1.45796,2554.2,2554.1,0.78278]
[1751621004456,2.82556,2554.2,2554.1,0.78278]
[1751621004860,2.0428,2554.2,2553.8,6.8977921]
[1751621005062,0.78285,2553.9,2553.8,3.99067]
[1751621006061,2.15045,2553.9,2553.8,3.99067]
[1751621009962,2.15045,2553.9,2553.8,3.2078]
[1751621010162,0.78288,2553.8,2553.7,0.7829]
[1751621010362,37.64158,2553.8,2553.7,0.7829]
[1751621010758,0.78295,2553.7,2553.6,0.78292]
[1751621016663,2.07205,2553.7,2553.6,0.78292]
[1751621017766,37.64205,2553.7,2553.6,0.78292]
[1751621018565,2.07205,2553.7,2553.6,0.78292]
[1751621018756,37.64205,2553.7,2553.6,0.78292]
[1751621019164,37.64105,2553.7,2553.6,0.78292]
[1751621020167,0.78295,2553.6,2553.5,2.3436921]
[1751621020366,0.78295,2553.6,2553.4,3.1266821]
[1751621020367,0.78298,2553.5,2553.4,3.1266821]
[1751621020867,0.78298,2553.5,2553.4,0.78299]
[1751621021366,36.35198,2553.5,2553.4,0.78299]
[1751621022268,0.78301,2553.4,2553.3,7.0162121]
[1751621022464,0.78301,2553.4,2553.3,5.5514921]
[1751621022767,0.78301,2553.4,2553.3,3.99084]
[1751621022966,0.78301,2553.4,2553.3,3.2078]
[1751621023167,2.17401,2553.4,2553.3,3.2078]
[1751621023359,2.17401,2553.4,2553.3,3.99084]
[1751621027169,2.17401,2553.4,2553.3,3.2078]
[1751621027567,2.17401,2553.4,2553.3,3.99084]
[1751621029370,2.17401,2553.4,2553.3,3.2078]
[1751621029569,2.17401,2553.4,2553.3,3.99084]
[1751621029768,0.78301,2553.4,2553.3,3.99084]
[1751621031870,36.35501,2553.4,2553.3,3.99084]
[1751621035074,36.35501,2553.4,2553.3,6.3345321]
[1751621035371,35.572,2553.4,2553.3,6.3345321]
[1751621035578,1.45347,2553.6,2553.5,0.78298]
[1751621035875,37.02447,2553.6,2553.5,0.78298]
[1751621036676,0.78298,2553.5,2553.4,1.45179]
[1751621040878,0.78301,2553.4,2553.3,6.3345021]
[1751621043479,0.78301,2553.4,2553.3,3.1267021]
[1751621044679,0.78301,2553.4,2553.3,2.3436921]
[1751621044883,0.78304,2553.3,2553.2,3.2078]
[1751621045180,36.35204,2553.3,2553.2,3.2078]
[1751621045379,36.35204,2553.3,2553.2,3.99087]
[1751621045779,36.35204,2553.3,2553.2,6.3345621]
[1751621046078,36.35204,2553.3,2553.2,3.99087]
[1751621046278,36.35204,2553.3,2553.2,6.33387202]
[1751621046470,36.35204,2553.3,2553.2,3.99087]
[1751621047281,12.47549,2553.6,2553.5,0.78298]
[1751621047581,48.98639028,2553.6,2553.5,0.78298]
[1751621048782,0.94290028,2553.6,2553.5,0.78298]
[1751621048983,0.78293,2553.7,2553.6,0.78291]
[1751621049184,37.29395339,2553.7,2553.6,0.78291]
[1751621052386,36.35093,2553.7,2553.6,0.78291]
[1751621053086,35.568,2553.7,2553.6,0.78291]
[1751621053287,0.78291,2553.7,2553.6,0.78291]
[1751621053484,11.02,2553.8,2553.7,0.78291]
[1751621053687,11.02,2553.8,2553.7,3.12750015]
[1751621053688,46.586,2553.8,2553.7,3.12750015]
[1751621054282,46.585,2553.8,2553.7,3.12750015]
[1751621054485,0.78283,2554.0,2553.9,0.78285]
[1751621054686,36.34783,2554.0,2553.9,0.78285]
[1751621055197,0.7104,2554.1,2554.0,0.78282]
[1751621055396,36.2754,2554.1,2554.0,3.12741015]
[1751621055586,36.2754,2554.1,2554.0,0.78282]
[1751621056791,37.05819,2554.1,2554.0,0.78282]
[1751621057090,36.2754,2554.1,2554.0,0.78282]
[1751621057794,11.80178,2554.2,2554.1,0.78279]
[1751621057993,46.581,2554.2,2554.1,3.99059]
[1751621058594,47.36376,2554.2,2554.1,3.99059]
[1751621058796,46.581,2554.2,2554.1,3.99059]
[1751621062191,47.9957,2554.2,2554.1,3.99059]
[1751621063698,48.77846,2554.2,2554.1,3.99059]
[1751621065091,48.77846,2554.2,2554.1,0.78279]
[1751621066389,47.9957,2554.2,2554.1,0.78279]
[1751621066587,48.77848,2554.2,2554.1,0.78279]
[1751621066786,49.41838,2554.2,2554.1,0.78279]
[1751621067496,48.6356,2554.2,2554.1,0.78279]
[1751621067696,49.41836,2554.2,2554.1,0.78279]
[1751621067889,49.41836,2554.2,2554.0,3.2078]
[1751621068093,49.41836,2554.2,2554.1,0.78279]
[1751621069998,2.83736,2554.2,2554.1,0.78279]
[1751621070593,37.6096,2554.2,2554.1,0.78279]
[1751621070799,35.555,2554.2,2554.1,0.78279]
[1751621073805,0.6838,2554.4,2554.3,0.78273]
[1751621074103,36.2378,2554.4,2554.3,0.78273]
[1751621074804,36.2378,2554.4,2554.3,3.99053]
[1751621075097,0.6838,2554.4,2554.3,3.99053]
[1751621075402,36.2368,2554.4,2554.3,3.99053]
[1751621076402,0.6838,2554.4,2554.3,3.99053]
[1751621076609,46.57,2554.5,2554.4,0.7827]
[1751621077808,0.7025,2554.6,2554.5,0.78267]
[1751621078009,36.2555,2554.6,2554.5,0.78267]
[1751621078302,2.0318,2554.6,2554.5,0.78267]
[1751621078508,37.5828,2554.6,2554.5,0.78267]
[1751621079604,2.0318,2554.6,2554.5,0.78267]
[1751621079910,56.41,2554.7,2554.6,0.78264]
[1751621080210,91.961,2554.7,2554.6,0.78264]
[1751621081010,2.79463,2555.0,2554.9,0.78255]
[1751621081215,48.5771,2555.0,2554.9,0.78255]
[1751621081706,49.35962,2555.0,2554.9,0.78255]
[1751621082107,13.0271,2555.0,2554.9,0.78255]
[1751621082311,3.2078,2555.1,2555.0,0.78252]
[1751621082617,36.197,2555.1,2555.0,0.78252]
[1751621083215,3.2078,2555.7,2555.6,0.7823]
[1751621083520,5.57997997,2555.7,2555.6,0.78233]
[1751621083814,0.7824,2555.5,2555.4,0.78238]
[1751621084116,36.3554,2555.5,2555.4,0.78238]
[1751621084608,0.7824,2555.4,2555.3,0.78239]
[1751621084808,1.418,2555.4,2555.3,0.78239]
[1751621085215,36.35539,2555.5,2555.4,0.78239]
[1751621085517,35.573,2555.5,2555.4,0.78239]
[1751621085717,35.579,2555.5,2555.4,0.78239]
[1751621085914,36.9168,2555.5,2555.4,0.78239]
[1751621087016,37.69916,2555.5,2555.4,0.78239]
[1751621088020,0.78242,2555.4,2555.3,0.78241]
[1751621090013,2.17242,2555.4,2555.3,0.78241]
[1751621090608,0.78242,2555.3,2555.2,3.99025]
[1751621090812,2.88262,2555.3,2555.2,3.99025]
[1751621091017,0.7102,2555.3,2555.2,3.99025]
[1751621091218,36.37142,2555.4,2555.3,0.78242]
[1751621091418,35.589,2555.4,2555.3,0.78242]
[1751621091618,36.37139,2555.4,2555.3,0.78242]
[1751621093217,37.68579,2555.4,2555.3,0.78242]
[1751621096720,2.09679,2555.4,2555.3,0.78242]
[1751621096921,37.67179,2555.4,2555.3,0.78242]
[1751621099922,36.8894,2555.4,2555.1,3.2078]
[1751621100219,1.95615,2555.2,2554.8,3.2078]
[1751621100423,0.78254,2555.0,2554.9,0.78251]
[1751621101918,0.78255,2554.9,2554.8,3.99036]
[1751621102117,2.83004,2555.0,2554.9,0.78255]
[1751621104429,38.39004,2555.0,2554.9,0.78255]
[1751621105528,0.78255,2554.9,2554.8,3.99035]
[1751621105727,2.10955,2554.9,2554.8,3.99035]
[1751621106023,2.10955,2554.9,2554.8,3.99038]
[1751621106324,0.78258,2554.8,2554.7,2.34459015]
[1751621106524,0.78261,2554.7,2554.6,2.34459015]
[1751621106723,0.78264,2554.6,2554.5,6.33504015]
[1751621106927,2.10964,2554.6,2554.5,6.33504015]
[1751621107230,2.10964,2554.6,2554.5,3.2078]
[1751621107624,2.10964,2554.6,2554.5,5.55239015]
[1751621107826,2.10964,2554.6,2554.5,3.2078]
[1751621108027,0.7827,2554.4,2554.3,2.34459015]
[1751621108227,0.78273,2554.3,2554.2,0.78275]
[1751621108524,2.80563,2554.3,2554.2,0.78275]
[1751621108730,2.80563,2554.3,2554.2,3.12734015]
[1751621109222,2.80563,2554.3,2554.2,0.78275]
[1751621110029,2.0229,2554.3,2554.2,0.78275]
[1751621110429,2.80563,2554.3,2554.2,0.78275]
[1751621111129,38.35963,2554.3,2554.2,0.78275]
[1751621111429,38.35663,2554.3,2554.2,0.78275]
[1751621116733,38.35263,2554.3,2554.2,0.78275]
[1751621117234,36.98353,2554.3,2554.2,0.78275]
[1751621121438,36.2008,2554.3,2554.2,0.78275]
[1751621121637,36.98353,2554.3,2554.2,0.78275]
[1751621122139,36.2008,2554.3,2554.2,0.78275]
[1751621122339,36.98353,2554.3,2554.2,0.78275]
[1751621122533,42.1583,2554.6,2554.4,0.78267]
[1751621122739,47.2509,2554.5,2554.4,0.78267]
[1751621122936,36.33171,2554.5,2554.4,0.78267]
[1751621123735,37.70761,2554.5,2554.4,0.78267]
[1751621123940,0.78274,2554.4,2554.3,0.78271]
[1751621124438,2.15864,2554.4,2554.3,0.78271]
[1751621125840,0.78274,2554.4,2554.3,0.78271]
[1751621126042,36.33174,2554.4,2554.3,0.78271]
[1751621126642,35.549,2554.4,2554.3,0.78271]
[1751621126843,0.78268,2554.5,2554.4,0.7827]
[1751621127045,36.33168,2554.5,2554.4,0.7827]
[1751621129143,37.74128,2554.5,2554.4,0.7827]
[1751621130535,2.19228,2554.5,2554.4,0.7827]
[1751621130737,37.74228,2554.5,2554.4,0.7827]
[1751621131846,2.19228,2554.5,2554.4,0.7827]
[1751621132046,37.74228,2554.5,2554.4,0.7827]
[1751621132747,48.76028,2554.5,2554.4,0.7827]
[1751621134748,0.78273,2554.4,2554.3,0.78271]
[1751621135248,0.78276,2554.3,2554.2,3.12732015]
[1751621135449,36.99656,2554.3,2554.2,3.12732015]
[1751621137348,36.99656,2554.3,2554.2,0.78273]
[1751621139451,1.44656,2554.3,2554.2,0.78273]
[1751621139752,0.78273,2554.4,2554.3,0.78268]
[1751621140052,36.33173,2554.4,2554.3,3.12074668]
[1751621140453,37.73783,2554.4,2554.3,3.12074668]
[1751621142449,0.7827,2554.5,2554.4,0.7827]
[1751621142656,15.70252,2554.7,2554.6,0.78264]
[1751621142953,52.1958819,2554.7,2554.6,0.78264]
[1751621144157,5.6338819,2554.7,2554.6,0.78264]
[1751621144455,41.1818819,2554.7,2554.6,0.78264]
[1751621144656,37.02872,2554.7,2554.6,3.12047813]
[1751621145055,1.48072,2554.7,2554.6,3.12047813]
[1751621145259,37.02772,2554.7,2554.6,3.12047813]
[1751621145456,36.2451,2554.7,2554.6,0.78264]
[1751621146559,36.2451,2554.7,2554.6,3.12047813]
[1751621147058,5.40467,2554.9,2554.6,3.12047813]
[1751621147059,15.00437,2554.9,2554.8,0.78258]
[1751621147255,52.17183603,2554.9,2554.8,0.78258]
[1751621147560,53.51423603,2554.9,2554.8,0.78258]
[1751621148357,50.30643603,2554.9,2554.8,0.78258]
[1751621150264,14.75943603,2554.9,2554.8,0.78258]
[1751621150464,49.36167,2554.9,2554.8,0.78258]
[1751621153265,0.7826,2554.8,2554.7,0.78258]
[1751621156460,36.3256,2554.8,2554.7,0.78258]
[1751621156660,0.78261,2554.7,2554.6,3.99044]
[1751621156863,0.78261,2554.7,2554.6,0.78264]
[1751621158169,0.78258,2554.8,2554.7,0.78261]
[1751621158368,36.32458,2554.8,2554.7,0.78261]
[1751621158569,37.74268,2554.8,2554.7,0.78261]
[1751621162867,2.20068,2554.8,2554.7,0.78261]
[1751621163069,48.75468,2554.8,2554.7,0.78261]
[1751621165866,47.9721,2554.8,2554.7,0.78261]
[1751621166071,48.75468,2554.8,2554.7,0.78261]
[1751621166968,47.9721,2554.8,2554.7,0.78261]
[1751621167170,48.75468,2554.8,2554.7,0.78261]
[1751621168174,46.554,2554.8,2554.7,0.78261]
[1751621168375,0.6767,2554.9,2554.8,0.78258]
[1751621168572,48.01225,2554.9,2554.8,0.78258]
[1751621169171,3.2078,2555.5,2554.9,0.78255]
[1751621169476,36.4818264,2555.4,2555.3,0.78242]
[1751621169677,3.2078,2555.5,2555.4,0.78239]
[1751621169877,38.7478,2555.5,2555.4,0.78239]
[1751621170270,4.14925406,2555.5,2555.4,0.78239]
[1751621170477,12.3836,2555.7,2555.6,0.78233]
[1751621170677,50.18291789,2555.7,2555.6,0.78233]
[1751621171278,38.2289,2555.7,2555.6,0.78233]
[1751621171772,2.6889,2555.7,2555.6,0.78233]
[1751621171972,67.6284528,2555.8,2555.7,0.7823]
[1751621171973,92.1564528,2555.8,2555.7,0.7823]
[1751621172577,94.9530328,2555.8,2555.7,0.7823]
[1751621173182,94.1707528,2555.8,2555.7,0.7823]
[1751621175082,94.9530228,2555.8,2555.7,0.7823]
[1751621175487,94.1707528,2555.8,2555.7,0.7823]
[1751621176385,94.9530228,2555.8,2555.7,0.7823]
[1751621177382,92.8526528,2555.8,2555.7,0.7823]
[1751621177886,57.3136528,2555.8,2555.7,0.7823]
[1751621178088,92.8466528,2555.8,2555.7,0.7823]
[1751621179791,93.6289228,2555.8,2555.7,0.7823]
[1751621179990,92.8466528,2555.8,2555.7,0.7823]
[1751621180488,93.6289228,2555.8,2555.7,0.7823]
[1751621180683,92.8466528,2555.8,2555.7,0.7823]
[1751621181192,92.1504528,2555.8,2555.7,0.7823]
[1751621181390,92.1464528,2555.8,2555.7,0.7823]
[1751621182893,56.6174528,2555.8,2555.7,0.7823]
[1751621183092,92.1464528,2555.8,2555.7,0.7823]
[1751621183890,92.9287228,2555.8,2555.7,0.7823]
[1751621187300,92.1464528,2555.8,2555.7,0.7823]
[1751621187699,92.9287228,2555.8,2555.7,0.7823]
[1751621187899,57.3997228,2555.8,2555.7,0.7823]
[1751621188301,92.9257228,2555.8,2555.7,0.7823]
[1751621188803,94.2571228,2555.8,2555.7,0.7823]
[1751621189696,0.78234,2555.7,2555.6,0.78231]
[1751621189896,3.53274,2555.7,2555.6,0.78231]
[1751621191197,39.05874,2555.7,2555.6,0.78231]
[1751621191501,0.6726,2555.7,2555.6,0.78231]
[1751621191700,67.6254528,2555.8,2555.7,0.7823]
[1751621191901,103.9327328,2555.8,2555.7,0.7823]
[1751621192600,105.2291328,2555.8,2555.7,0.7823]
[1751621192801,0.2504528,2555.8,2555.7,0.7823]
[1751621193105,35.7754528,2555.8,2555.7,0.7823]
[1751621193802,37.0718528,2555.8,2555.7,0.7823]
[1751621198806,37.8541228,2555.8,2555.7,0.7823]
[1751621199409,37.0718528,2555.8,2555.7,0.7823]
[1751621200812,37.8541228,2555.8,2555.7,0.7823]
[1751621201114,37.0718528,2555.8,2555.7,0.7823]
[1751621202111,37.8541228,2555.8,2555.7,0.7823]
[1751621204010,0.7823,2555.7,2555.6,3.12015813]
[1751621204212,3.05392221,2555.7,2555.6,0.78232]
[1751621204710,2.27162221,2555.7,2555.6,0.78232]
[1751621204905,0.93822221,2555.7,2555.6,0.78232]
[1751621205112,0.93822221,2555.7,2555.6,1.44622]
[1751621205312,36.5577428,2555.8,2555.7,0.7823]
[1751621205514,37.49590913,2555.8,2555.7,0.7823]
[1751621205809,36.71361913,2555.8,2555.7,0.7823]
[1751621206915,36.71361913,2555.8,2555.7,1.32167443]
[1751621207308,36.71061913,2555.8,2555.7,1.32167443]
[1751621207508,1.18861913,2555.8,2555.7,1.99297443]
[1751621207705,2.34748724,2556.3,2556.2,0.78215]
[1751621207910,41.07628724,2556.4,2556.3,0.78212]
[1751621208207,56.349,2556.6,2556.5,0.78206]
[1751621208412,92.69203,2556.6,2556.5,1.32143443]
[1751621208608,92.6116,2556.6,2556.5,1.32143443]
[1751621208814,92.6536,2556.6,2556.5,1.32143443]
[1751621209813,56.349,2556.6,2556.5,1.32143443]
[1751621210008,91.953,2556.6,2556.5,1.32143443]
[1751621210711,35.604,2556.6,2556.5,1.32143443]
[1751621210910,36.9621,2556.6,2556.5,1.32143443]
[1751621212119,3.2078,2556.7,2556.6,0.78202]
[1751621212317,39.59279,2556.7,2556.6,1.32139443]
[1751621212515,40.1689,2556.7,2556.6,1.32139443]
[1751621212811,39.59279,2556.7,2556.6,1.32139443]
[1751621213016,40.95089,2556.7,2556.6,1.32139443]
[1751621213410,5.34789,2556.7,2556.6,0.53937443]
[1751621213611,40.97789,2556.7,2556.6,0.53937443]
[1751621214219,3.98979,2556.7,2556.6,0.53937443]
[1751621214416,39.61979,2556.7,2556.6,1.32140443]
[1751621214612,39.61979,2556.7,2556.6,0.53937443]
[1751621215016,39.61979,2556.7,2556.6,1.32139443]
[1751621216519,39.61979,2556.7,2556.6,0.53937443]
[1751621216718,40.95879,2556.7,2556.6,0.53937443]
[1751621221018,0.78218,2556.1,2556.0,4.63909]
[1751621221325,36.40518,2556.1,2556.0,5.17962402]
[1751621222825,36.40518,2556.1,2556.0,4.53052402]
[1751621224223,35.623,2556.1,2556.0,4.53052402]
[1751621224424,36.40518,2556.1,2556.0,4.53052402]
[1751621224721,36.40518,2556.1,2556.0,0.54053402]
[1751621226324,77.20518,2556.1,2556.0,0.54053402]
[1751621227327,0.78221,2556.0,2555.9,0.78223]
[1751621227525,1.47271,2556.0,2555.9,1.32114042]
[1751621228330,1.47271,2556.0,2555.9,0.53891042]
[1751621228929,2.82401,2556.0,2555.9,0.53891042]
[1751621229633,2.82401,2556.0,2555.9,1.32115042]
[1751621230132,2.82401,2556.0,2555.9,1.31726362]
[1751621231841,2.82401,2556.0,2555.9,0.53502362]
[1751621232339,49.45401,2556.0,2555.9,1.31726362]
[1751621232540,49.45401,2556.0,2555.9,0.53502362]
[1751621233140,0.78224,2555.9,2555.8,0.78225]
[1751621233341,0.78224,2555.9,2555.8,1.31649729]
[1751621236246,0.78224,2555.9,2555.8,1.3167135]
[1751621236748,0.78224,2555.9,2555.8,0.5344635]
[1751621237049,0.78227,2555.8,2555.7,2.99176435]
[1751621237251,36.36427,2555.8,2555.7,2.99176435]
[1751621237745,15.02737,2556.0,2555.8,0.78224]
[1751621237746,0.78226,2555.9,2555.8,0.78224]
[1751621237944,36.36426,2555.9,2555.8,0.78224]
[1751621238440,3.2078,2556.2,2556.1,0.78218]
[1751621238646,46.615,2556.2,2556.1,0.78218]
[1751621239045,11.031,2556.2,2556.1,0.78218]
[1751621239245,46.615,2556.2,2556.1,1.44648]
[1751621239452,46.615,2556.2,2556.1,4.36736435]
[1751621241352,46.608,2556.2,2556.1,4.36736435]
[1751621241848,46.608,2556.2,2556.1,2.81278]
[1751621245649,0.7821,2556.4,2556.3,0.78212]
[1751621245950,36.3461,2556.4,2556.3,0.78212]
[1751621246645,11.03,2556.6,2556.5,0.78206]
[1751621246850,42.25391,2556.7,2556.6,0.78202]
[1751621247048,48.04691,2556.7,2556.6,0.78202]
[1751621247251,46.594,2556.7,2556.6,0.78202]
[1751621247853,47.37599,2556.7,2556.6,0.78202]
[1751621248456,46.594,2556.7,2556.6,1.30396238]
[1751621248748,3.2078,2556.8,2556.7,0.78199]
[1751621248953,38.7718,2556.8,2556.7,1.30393238]
[1751621249757,38.7728,2556.8,2556.7,1.30393238]
[1751621251156,39.55476,2556.8,2556.7,1.30393238]
[1751621251358,40.95366,2556.8,2556.7,1.30393238]
[1751621252854,36.9519,2556.8,2556.7,1.30393238]
[1751621253453,1.3989,2556.8,2556.7,1.30393238]
[1751621253652,36.9509,2556.8,2556.7,1.30393238]
[1751621253958,35.552,2556.8,2556.7,1.30393238]
[1751621254360,0.6437,2556.9,2556.8,0.78196]
[1751621254551,36.1907,2556.9,2556.8,1.30390238]
[1751621255054,11.04898358,2557.0,2556.9,0.78193]
[1751621255259,5.08385299,2558.2,2557.7,0.78169]
[1751621255559,0.78163,2557.9,2557.8,0.52194238]
[1751621255956,36.58363,2557.9,2557.8,0.52194238]
[1751621256152,5.08386299,2558.2,2557.8,0.52194238]
[1751621256355,0.78158,2558.1,2557.9,3.2078]
[1751621256563,1.3933,2558.1,2558.0,0.78158]
[1751621256861,0.6832,2558.4,2558.3,0.78151]
[1751621257061,36.5452,2558.4,2558.3,3.98931]
[1751621257260,35.862,2558.4,2558.3,3.98931]
[1751621257467,37.2733,2558.4,2558.3,3.98931]
[1751621258663,35.88,2558.4,2558.3,3.98931]
[1751621258967,35.903,2558.4,2558.3,3.98931]
[1751621259368,35.904,2558.4,2558.3,3.2078]
[1751621259563,0.78142,2558.6,2558.5,0.78144]
[1751621259760,0.78144,2558.5,2558.4,0.78145]
[1751621260066,0.78147,2558.4,2558.3,3.2078]
[1751621261465,36.68647,2558.4,2558.3,3.2078]
[1751621262668,36.67647,2558.4,2558.3,3.2078]
[1751621263064,37.99327,2558.4,2558.3,3.2078]
[1751621264964,77.47647,2558.4,2558.3,3.2078]
[1751621265465,78.79327,2558.4,2558.3,3.2078]
[1751621267271,0.78156,2558.2,2558.1,0.78155]
[1751621267472,36.65456,2558.2,2558.1,3.98935]
[1751621267870,37.94796,2558.2,2558.1,3.98935]
[1751621268070,37.1664,2558.2,2558.1,3.98935]
[1751621268267,37.94794,2558.2,2558.1,3.98935]
[1751621269373,1.48193,2558.3,2558.2,0.78154]
[1751621269574,37.32993,2558.3,2558.2,0.78154]
[1751621269874,38.68023,2558.3,2558.2,0.78154]
[1751621270374,0.78154,2558.2,2558.1,3.98937]
[1751621270574,2.13184,2558.2,2558.1,3.98937]
[1751621271375,2.13184,2558.2,2558.1,3.2078]
[1751621273283,0.7816,2558.0,2557.9,0.78162]
[1751621273474,36.6106,2558.0,2557.9,0.78162]
[1751621273676,0.78163,2557.9,2557.8,3.98944]
[1751621273977,2.20103,2557.9,2557.8,3.2078]
[1751621274577,0.78178,2557.5,2557.4,3.2078]
[1751621274775,36.60578,2557.5,2557.4,3.2078]
[1751621278576,36.60578,2557.5,2556.9,2.13293]